[Event "III Menorca Open-A 2024"]
[Site "Ciutadella Menorca"]
[Date "2024.04.06"]
[Round "8.16"]
[White "Castellanos Rodriguez, Renier"]
[Black "Gorshtein, Ido"]
[Result "1/2-1/2"]
[ECO "B94"]
[WhiteElo "2467"]
[BlackElo "2540"]
[Annotator "TA"]
[PlyCount "106"]
[EventDate "2024.04.02"]
[EventType "swiss"]
[EventCountry "ESP"]
[SourceTitle "playchess.com"]
[Source "ChessBase"]
[SourceQuality "1"]
[TimeControl "5400+30"]

{[%evp 34,106,0,0,7,0,0,0,-3,-21,-21,-35,-43,-63,-47,-48,-56,-124,-110,-105,-115,-132,-145,-203,-239,-243,-250,-240,-175,-168,-180,-206,-53,-45,-58,-112,-47,-34,0,0,12,16,20,0,0,0,0,-8,-5,-8,0,-8,-8,-14,-20,-20,-14,-14,0,0,0,0,0,0,0,0,0,0,0,0,0,0,0,0,0]} 1. e4 {[%emt 0:00:04]} c5 {[%emt 0:00:06]} 2. Nf3 {[%emt 0:00:06]} d6 {[%emt 0:00:06]} 3. d4 {[%emt 0:00:05]} cxd4 {[%emt 0:00:05]} 4. Nxd4 {[%emt 0:00:03]} Nf6 {[%emt 0:00:07]} 5. Nc3 {[%emt 0:00:04]} a6 {[%emt 0:00:03]} 6. Bg5 {[%emt 0:02:59]} Nbd7 {[%emt 0:00:10]} 7. Bc4 {[%emt 0:00:31]} Qb6 {[%emt 0:00:23] B94: Sicilian Najdorf: 6 Bg5 Nbd7.} 8. Bb3 {[%emt 0:00:18]} e6 {[%emt 0:00:15]} 9. Bxf6 {[%emt 0:04:09]} Nxf6 {[%emt 0:00:03]} 10. Qd2 {[%emt 0:00:05]} Nd7 $1 {[%emt 0:01:25] The main line 10...Nd7 scores better than 10...Be7.} 11. O-O-O {[%emt 0:00:31]} Nc5 {[%emt 0:00:21]} 12. f4 {[%emt 0:03:20]} Bd7 {[%emt 0:00:20]} 13. g4 {[%emt 0:00:42]} O-O-O {[%emt 1:33:36]} 14. h4 $146 {[%emt 0:02:27]} ({Predecessor:} 14. g5 h6 15. h4 Kb8 16. f5 g6 17. f6 Bc6 18. Rhe1 hxg5 19. hxg5 Rc8 20. Kb1 {½-½ Vasquez Schroder,R (2475)-Mishra,A (2627) Chessable Masters Play In rapid 2024 (4)}) 14... Kb8 {[%emt 0:00:00]} 15. f5 {[%emt 0:01:13]} g6 {[%emt 0:00:00]} 16. g5 {[%emt 0:04:16]} gxf5 {[%emt 0:00:00]} 17. exf5 {[%emt 0:00:09]} d5 {[%emt 0:00:00]} 18. Kb1 {[%emt 0:03:49]} Bc8 {[%emt 0:00:00]} 19. Rhe1 {[%emt 0:05:20]} Bg7 {[%emt 0:00:00]} 20. f6 {[%emt 0:03:46]} Bf8 $1 {[%emt 0:03:30]} 21. Nf3 {[%emt 0:01:02]} Bd6 {[%emt 0:00:00]} 22. Ne5 {[%emt 0:03:28]} Qc7 {[%emt 0:00:00]} 23. Nd3 {[%emt 0:08:48]} b6 {[%emt 0:00:00]} 24. Ne2 {[%emt 0:10:01]} h6 {[%emt 0:00:00]} 25. Nef4 {[%emt 0:06:23]} (25. gxh6 Ne4 26. Qe3 Bf8 $17) (25. Nxc5 $15 bxc5 26. c3 (26. gxh6 Bf8 $17)) 25... hxg5 {[%emt 0:00:00]} 26. hxg5 {[%emt 0:00:03]} Rh4 {[%emt 0:00:00]} 27. Rf1 {[%emt 0:00:29] [#]} Rg4 $1 {[%emt 0:00:00]} 28. Nxc5 {[%emt 0:12:28]} (28. Nh3 $17 {keeps fighting.}) 28... bxc5 $19 {[%emt 0:00:00]} (28... Qxc5 29. Nd3 Qc7 30. Rh1 $15) 29. Ne2 {[%emt 0:00:14]} c4 {[%emt 0:00:00]} 30. Ba4 {[%emt 0:00:05]} Qb6 {[%emt 0:00:00]} 31. Nd4 {[%emt 0:05:02]} Rg8 {[%emt 0:00:00]} 32. Rg1 {[%emt 0:04:09]} Rxg1 $2 {[%emt 0:00:00]} (32... R8xg5 $19 33. Rxg4 Rxg4) 33. Rxg1 $15 {[%emt 0:00:15]} Bb7 {[%emt 0:00:00]} 34. Rd1 {[%emt 0:07:41]} (34. Rf1 $15) 34... Bc5 {[%emt 0:00:00]} ({Don't play} 34... Qb4 $6 35. Qxb4 Bxb4 36. Rg1 $11) (34... e5 $17 35. Nf5 d4) 35. c3 $1 $15 {[%emt 0:01:50]} Ka7 {[%emt 0:00:00]} 36. Re1 {[%emt 0:01:21]} Qc7 {[%emt 0:00:00]} 37. Qe3 {[%emt 0:02:05]} Qh2 {[%emt 0:00:00]} 38. Bc2 {[%emt 0:00:57]} Qh4 {[%emt 0:00:00]} 39. g6 {[%emt 0:02:43]} Qxf6 {[%emt 0:00:00]} 40. gxf7 {[%emt 0:00:11]} Qxf7 {[%emt 0:00:00]} (40... Rf8 {simplifies} 41. Qxe6 Bxd4 42. cxd4 Qxe6 43. Rxe6 Rxf7 44. Ba4 Rf4) 41. Qxe6 {[%emt 0:07:48]} Qf2 {[%emt 0:00:00]} (41... Qxe6 {simplifies} 42. Nxe6 Bf2 43. Rd1 Rg3) 42. Rc1 {[%emt 0:00:00]} Rg1 {[%emt 0:00:57]} 43. Nf5 {[%emt 0:00:00]} (43. Qe5 {simplifies} Bxd4 44. Qxd4+ Qxd4 45. cxd4 Rg4 46. Rd1) 43... Rxc1+ {[%emt 0:04:03]} 44. Kxc1 {[%emt 0:00:00]} Qf4+ {[%emt 0:00:48]} 45. Kd1 {[%emt 0:00:00]} d4 {[%emt 0:00:31]} 46. Nxd4 {[%emt 0:00:00]} Bxd4 {[%emt 0:00:25]} 47. cxd4 {[%emt 0:00:00]} Qxd4+ {[%emt 0:01:12]} 48. Ke1 {[%emt 0:00:00]} a5 {[%emt 0:01:03]} 49. Bd1 {[%emt 0:01:12]} c3 {[%emt 0:01:02]} (49... Qxb2 50. Qxc4 Qb6 51. Be2) 50. bxc3 {[%emt 0:00:22]} Qxc3+ {[%emt 0:00:02]} 51. Kf2 {[%emt 0:00:27]} Qd2+ {[%emt 0:00:11]} 52. Be2 {[%emt 0:00:22]} Qf4+ {[%emt 0:01:24]} 53. Ke1 $1 {[%emt 0:00:02]} Qe4 {[%emt 0:00:30]} 1/2-1/2

[Event "III Menorca Open-A 2024"]
[Site "Ciutadella Menorca"]
[Date "2024.04.06"]
[Round "8.17"]
[White "Zhu, Jiner"]
[Black "Raja Rithvik R"]
[Result "1-0"]
[ECO "B27"]
[WhiteElo "2463"]
[BlackElo "2532"]
[Annotator "TA"]
[PlyCount "177"]
[EventDate "2024.04.02"]
[EventType "swiss"]
[EventCountry "ESP"]
[SourceTitle "playchess.com"]
[Source "ChessBase"]
[SourceQuality "1"]
[TimeControl "5400+30"]

{[%evp 15,177,2,10,0,5,-1,8,4,24,26,18,21,22,12,45,0,-22,-13,0,0,0,0,0,-8,0,0,6,0,8,15,24,27,27,35,68,59,61,56,45,69,60,67,135,114,112,83,101,108,78,97,101,95,68,84,79,80,62,68,88,83,75,71,110,111,118,124,120,124,119,119,117,111,96,31,112,114,114,7,1,0,20,0,80,80,136,128,118,0,128,97,128,128,187,190,260,260,260,260,260,260,247,260,260,128,128,0,260,260,260,128,128,128,483,476,480,479,479,469,487,487,487,469,469,469,469,0,469,412,4081,4081,4073,4073,4073,4066,29967,29967,29967,29968,29975,29969,29977,29978,29978,29976,29973,29977,29976,29978,29978,29979,29979,29981,29981,29981,29982,29983,29980,29981,29983,29984,29984,29984,29985,29985]} 1. e4 {[%emt 0:00:03]} c5 {[%emt 0:00:28]} 2. Nf3 {[%emt 0:00:11]} d6 {[%emt 0:00:05]} 3. Nc3 {[%emt 0:00:03]} Nf6 {[%emt 0:00:05]} 4. d4 {[%emt 0:00:04]} cxd4 {[%emt 0:00:04]} 5. Qxd4 {[%emt 0:00:03]} Nc6 {[%emt 0:00:08][%cal Bb8c6,Bc6a5,Ba5c4][%mdl 32]} 6. Qe3 {[%emt 0:00:05]} g6 {[%emt 0:00:25]} 7. Bc4 {[%emt 0:00:08]} Bg7 {[%emt 0:00:22]} 8. O-O {[%emt 0:00:07]} O-O {[%emt 0:00:49]} 9. h3 {[%emt 0:00:08]} Na5 {[%emt 0:07:30]} 10. Be2 {[%emt 0:00:14]} Be6 {[%emt 0:08:07]} 11. Rd1 {[%emt 0:00:11] The position is equal.} Qc8 {[%emt 0:05:28]} 12. Qg5 {[%emt 0:00:10]} Nc4 {[%emt 0:12:37]} 13. Qh4 {[%emt 0:03:06]} a6 {[%emt 0:04:46]} 14. a4 {[%emt 0:03:24]} Qc7 {[%emt 0:06:32]} 15. Bxc4 {[%emt 0:20:35]} (15. Ng5 $14) 15... Bxc4 $11 {[%emt 0:01:43]} 16. a5 {[%emt 0:11:44]} Rfe8 {[%emt 0:01:53]} 17. Bh6 {[%emt 0:00:53]} Rac8 {[%emt 0:05:14]} 18. Bxg7 {[%emt 0:04:18]} Kxg7 {[%emt 0:00:06]} 19. Qg5 {[%emt 0:00:18]} Qc6 {[%emt 0:07:02]} 20. Nd4 {[%emt 0:03:43]} Qc5 {[%emt 0:03:29]} (20... Nxe4 $2 21. Qe3 (21. Qh4 Qd7 $18) 21... Qc7 22. Nxe4 $18) 21. Qe3 {[%emt 0:04:14]} Kg8 {[%emt 0:07:40]} 22. Qe1 {[%emt 0:01:35]} e5 {[%emt 0:10:22]} 23. Na4 {[%emt 0:07:43]} Qc7 {[%emt 0:00:01]} 24. Nf3 {[%emt 0:00:11][%cal Bd4f3,Bf3d2,Bd2e4][%mdl 32]} d5 {[%emt 0:01:46]} 25. Nb6 {[%emt 0:00:26]} Rcd8 {[%emt 0:00:25]} 26. Nd2 $1 {[%emt 0:00:42] A dynamic duo of knights.} Bb5 {[%emt 0:00:45]} 27. Nxd5 {[%emt 0:01:22]} Nxd5 {[%emt 0:00:08]} 28. exd5 {[%emt 0:00:03][%cal Be4d5,Bd5d6][%mdl 32]} Qxc2 {[%emt 0:00:34]} (28... Rxd5 $14 29. c4 (29. Ne4 Rxd1 30. Rxd1 Re6 $14) 29... Bxc4) 29. Ne4 {[%emt 0:00:30]} Kg7 {[%emt 0:00:44][%cal Ob5e2] Prevents Nf6.} 30. Qb4 {[%emt 0:00:51] Strongly threatening Nd6.} Qc4 {[%emt 0:07:19]} 31. Qxc4 {[%emt 0:00:19]} Bxc4 {[%emt 0:00:02]} 32. d6 {[%emt 0:00:06] Threatens to win with Nc5.} Re6 {[%emt 0:02:56]} 33. Rac1 $1 {[%emt 0:00:18]} Bb5 {[%emt 0:00:18][%cal Bc4b5,Bb5c6,Bc6e4][%mdl 32]} 34. Rc7 {[%emt 0:01:22][%cal Od6d7] Hoping for d7!} Bc6 {[%emt 0:01:16] [#]} 35. d7 $1 {[%emt 0:01:40] White has more active pieces.} Bxe4 {[%emt 0:03:43]} 36. Rc8 {[%emt 0:00:06]} Rxd7 {[%emt 0:00:20]} 37. Rxd7 $14 {[%emt 0:00:06][%mdl 4096] Endgame. KRR-KRB} Bc6 {[%emt 0:00:02]} 38. Rdc7 {[%emt 0:03:34]} e4 {[%emt 0:00:13]} 39. b4 {[%emt 0:00:11]} e3 {[%emt 0:01:03]} 40. fxe3 {[%emt 0:00:13]} Rxe3 {[%emt 0:00:02] [#]} 41. b5 $1 {[%emt 0:01:28][%mdl 512]} Bxb5 {[%emt 0:00:11]} 42. Rxb7 {[%emt 0:00:05]} Re1+ {[%emt 0:00:54]} 43. Kf2 {[%emt 0:00:44]} Rf1+ {[%emt 0:01:39]} 44. Ke3 {[%emt 0:00:23]} (44. Kg3 $1 $16) 44... h5 {[%emt 0:00:17]} (44... Ra1 $1 $14) 45. Rcc7 $16 {[%emt 0:00:46]} h4 {[%emt 0:01:10]} 46. Kd4 {[%emt 0:00:39]} (46. Ra7 $16) 46... Rf4+ $11 {[%emt 0:01:06]} 47. Kc5 {[%emt 0:02:05]} Rf5+ {[%emt 0:00:00]} (47... Bf1 $6 48. Rb2 $16) 48. Kd4 {[%emt 0:03:54]} Bf1 {[%emt 0:00:43]} (48... Rf4+ $11 {remains equal.} 49. Ke3 Rf1) 49. Rb2 {[%emt 0:00:06]} Bb5 {[%emt 0:01:53]} (49... Rxa5 $142 50. Rf2 Rf5 51. Rxf5 gxf5) 50. Rb7 {[%emt 0:04:10]} Bf1 {[%emt 0:00:31]} 51. Rc7 {[%emt 0:02:26]} Bb5 {[%emt 0:00:28]} (51... Rxa5 52. Rf2 Rf5 53. Rxf5 gxf5 54. Rc2 $18) 52. Ke3 {[%emt 0:00:49] Prevents Rf4} Be8 {[%emt 0:00:28]} 53. Ra2 {[%emt 0:01:35]} g5 {[%emt 0:00:35]} (53... Re5+ $16 54. Kd4 Rf5) 54. Ra7 {[%emt 0:00:08]} Bb5 {[%emt 0:00:28]} (54... Rf6 $142 55. Re7 Bc6) 55. Rf2 $18 {[%emt 0:00:15]} Rxf2 {[%emt 0:00:19]} 56. Kxf2 {[%emt 0:00:04] Black must now prevent Rb7. KR-KB} Kg6 {[%emt 0:00:06]} 57. Rb7 $1 {[%emt 0:00:09]} Bc4 {[%emt 0:00:32]} 58. Rb4 $1 {[%emt 0:01:21]} Bd3 {[%emt 0:00:03]} 59. Rd4 {[%emt 0:04:10]} (59. Ke3 $1 $18 Bf1 60. Kf2) 59... Bb5 $16 {[%emt 0:00:02]} 60. Rb4 {[%emt 0:02:15]} (60. Rd5 $16 {[%cal Od5b5] White threatens Rxb5! and mate.} Bc4 61. Rc5) 60... Bd3 $18 {[%emt 0:00:02]} 61. Ke3 $1 {[%emt 0:00:05]} Bf1 {[%emt 0:00:04] [#]} 62. Rb2 {[%emt 0:00:40]} (62. Rb1 $1 $18 {[%cal Rb1f1] and the rest is easy.} Bxg2 63. Rb6+ f6 64. Kf2 Bxh3 65. Rxa6) 62... f6 $16 {[%emt 0:00:40]} 63. Kd4 {[%emt 0:00:13]} f5 $2 {[%emt 0:01:50][%mdl 8192]} (63... Kg7 $16 {is tougher.} 64. Rf2 Bb5) 64. Ke3 $18 {[%emt 0:01:56]} Kf6 {[%emt 0:01:09]} 65. Kf2 {[%emt 0:00:57]} Bc4 {[%emt 0:00:14]} 66. Rb4 {[%emt 0:00:05]} Bd3 {[%emt 0:00:06]} 67. Rd4 {[%emt 0:11:55]} Bb5 {[%emt 0:00:02]} 68. Rd5 {[%emt 0:00:05][%cal Od5b5] Threatening mate with Rxb5!} Bc4 {[%emt 0:00:10]} 69. Rc5 {[%emt 0:00:03]} Bd3 {[%emt 0:00:05]} 70. Ke3 $2 {[%emt 0:00:42]} ({White should play} 70. Rc6+ $18 Kf7 71. Rd6) 70... Bf1 $2 {[%emt 0:00:01][%mdl 8192]} (70... Be4 $11) 71. Kf3 {[%emt 0:00:06]} g4+ {[%emt 0:03:02]} (71... f4 $142 72. Rc3 Kg6) 72. hxg4 {[%emt 0:04:40]} fxg4+ {[%emt 0:00:02]} 73. Kf2 {[%emt 0:00:05]} Bd3 {[%emt 0:00:17]} 74. Rd5 {[%emt 0:00:05]} Be4 {[%emt 0:01:03]} 75. Rd6+ {[%emt 0:00:13] White mates.} Ke7 {[%emt 0:00:01]} 76. Rxa6 {[%emt 0:01:36]} h3 {[%emt 0:00:08]} 77. Rh6 {[%emt 0:00:26]} Bxg2 {[%emt 0:01:32]} 78. a6 {[%emt 0:00:07][%cal Ba5a6,Ba6a7][%mdl 32]} Kd7 {[%emt 0:00:20]} 79. a7 {[%emt 0:00:07]} Ba8 {[%emt 0:00:25] [#]} 80. Rh8 $1 {[%emt 0:03:08]} h2 {[%emt 0:00:03]} 81. Rxh2 $1 {[%emt 0:00:05]} ({Not} 81. Rxa8 h1=Q (81... h1=R 82. Rd8+ Kxd8 83. a8=Q+ Ke7 84. Qxh1 Kd6 85. Qe4 Kc7 86. Qxg4) 82. Rf8 g3+ 83. Kxg3 Qg1+ 84. Kh3 Qe3+ (84... Qxa7 85. Rf7+ Ke6 86. Rxa7 Ke5 87. Ra5+ Kd4 88. Kg3 Ke4 89. Kg4) 85. Kg2 Qd2+ (85... Qxa7 86. Rf7+ Kc6 87. Rxa7 Kb6 88. Rg7 Kc5 89. Kf3 Kd5 90. Rg5+ Ke6 91. Ke4) (85... Qg5+ 86. Kf1 $11) 86. Kg1 Qg5+ (86... Qd4+ 87. Kf1 $11) 87. Kf1 Qc1+ 88. Ke2 Qc4+ (88... Qb2+ 89. Kf1 $11) 89. Kd1 Qg4+ (89... Qd3+ 90. Ke1 $11) 90. Kc1 Qg1+ 91. Kd2 Qg5+ (91... Qxa7 92. Rf7+ Ke6 93. Rxa7 Ke5 94. Kd3 Kd6 95. Ra5 Ke6 96. Kd4) (91... Qd4+ 92. Ke2 $11) 92. Kd1 Qh5+ (92... Qg1+ 93. Kd2 $11) 93. Ke1 Qe5+ (93... Qa5+ 94. Ke2 $11) 94. Kf1 Qa1+ 95. Ke2 Qa6+ (95... Qxa7 96. Rf7+ Kc6 97. Rxa7 Kd5 98. Kd3 Ke6 99. Ke4 Kd6 100. Ra5) 96. Ke1 Qa5+ (96... Qxa7 97. Rf7+ Kd6 98. Rxa7 Kc6 99. Kd2 Kd5 100. Ke3 Kd6 101. Kd4) (96... Qa1+ 97. Ke2 $11) 97. Kf1 Qb5+ (97... Qxa7 98. Rf7+ Kc6 99. Rxa7 Kb6 100. Rd7 Kc6 101. Rd8 Kc5 102. Ke2) (97... Qa1+ 98. Ke2 $11) 98. Kg2 Qd5+ (98... Qb7+ 99. Kf1 $11) 99. Kh3 Qe6+ (99... Qh1+ 100. Kg3 $11) 100. Kg2 Qe4+ (100... Qa2+ 101. Kf1 $11) 101. Kf1 Qd3+ (101... Qb1+ 102. Kg2 $11) 102. Kf2 Qd4+ 103. Ke2 Qc4+ (103... Qxa7 104. Rf7+ Ke6 105. Rxa7 Ke5 106. Kd3 Kf5 107. Ra5+ Kf6 108. Ke4) (103... Qb2+ 104. Kf1 $11) 104. Kd1 Qb3+ (104... Qd3+ 105. Ke1 $11) 105. Ke2 Qe6+ (105... Qa2+ 106. Kf1 $11) 106. Kf2 Qb6+ (106... Qa2+ 107. Ke1 $11) 107. Ke2 Qb5+ (107... Qxa7 108. Rf7+ Ke6 109. Rxa7 Kd6 110. Ra5 Kd7 111. Ke3 Ke6 112. Kd4) (107... Qa6+ 108. Ke1 $11) 108. Kd1 Qd3+ 109. Ke1 Qe3+ 110. Kf1 Qc1+ (110... Qxa7 111. Rf7+ Kc6 112. Rxa7 Kb6 113. Rd7 Kc6 114. Rd3 Kc5 115. Ke2) 111. Kg2 Qc6+ (111... Qb2+ 112. Kf1 $11) 112. Kf1 Qb5+ (112... Qa6+ 113. Kg2 $11) 113. Kg2 Qe2+ (113... Qb7+ 114. Kg3 $11) (113... Qb2+ 114. Kf1 $11) 114. Kh1 Qe4+ 115. Kg1 Qg6+ 116. Kf2 Qc2+ (116... Qb6+ 117. Kf3 $11) 117. Kf1 Qc4+ (117... Qb1+ 118. Kg2 $11) 118. Kg2 Qe4+ (118... Qa2+ 119. Kf1 $11) 119. Kf1 Qb1+ 120. Kg2 Qg6+ 121. Kf2 Qb6+ 122. Kf1 Qb5+ $11 (122... Qxa7 123. Rf7+ Kc6 124. Rxa7 Kb6 125. Rd7 Kc6 126. Rd3 Kc5 127. Ke2) (122... Qa6+ 123. Kg2 $11)) 81... Kc7 {[%emt 0:00:02]} 82. Kg3 {[%emt 0:00:07]} Kb6 {[%emt 0:00:48]} 83. Ra2 {[%emt 0:00:04]} ({Weaker is} 83. Kxg4 Kxa7 84. Rb2 Bb7 $14) 83... Kb7 {[%emt 0:00:20]} 84. Kxg4 {[%emt 0:00:05]} Kb6 {[%emt 0:00:02]} 85. Kf4 {[%emt 0:00:07]} Kb7 {[%emt 0:00:06]} 86. Ke5 {[%emt 0:00:04]} Kb6 {[%emt 0:00:11]} 87. Kd6 {[%emt 0:00:05]} Kb7 {[%emt 0:00:06]} 88. Kd7 {[%emt 0:00:13]} Kb6 {[%emt 0:00:34]} 89. Kc8 {[%emt 0:00:05] Weighted Error Value: White=0.15 (very precise) /Black=0.15 (very precise) .  Loses game:     	---       	Black=2      Missed win:     	White=1     	---        Mistake:       	White=6     	Black=7      Inaccurate:     	---       	Black=5      OK:         	White=24    	Black=20     Best:        	White=6     	Black=9      Strong:       	White=6     	---        Brilliant:      	White=1     	---} 1-0

[Event "III Menorca Open-A 2024"]
[Site "Ciutadella Menorca"]
[Date "2024.04.06"]
[Round "8.18"]
[White "Kurmangaliyeva, Liya"]
[Black "Vogel, Roven"]
[Result "0-1"]
[ECO "B80"]
[WhiteElo "2230"]
[BlackElo "2528"]
[Annotator "TA"]
[PlyCount "100"]
[EventDate "2024.04.02"]
[EventType "swiss"]
[EventCountry "ESP"]
[SourceTitle "playchess.com"]
[Source "ChessBase"]
[SourceQuality "1"]
[TimeControl "5400+30"]

{[%evp 11,100,19,32,28,31,36,33,40,43,63,60,18,27,26,42,47,57,41,70,52,64,66,74,81,86,64,101,20,51,0,0,0,15,29,82,-90,-83,-101,-42,-49,-38,-65,-48,-53,-40,-43,-27,-33,-32,-33,-34,-42,-42,-49,-35,-66,-33,-64,-31,-68,-44,-75,-53,-97,-88,-225,-197,-337,-222,-252,-252,-240,-172,-279,-304,-359,-298,-423,-418,-387,-322,-731,-611,-29971,-29952,-29974,-29977,-29976,-29968,-2527,-2136]} 1. e4 {[%emt 0:00:20]} c5 {[%emt 0:00:09]} 2. Nf3 {[%emt 0:00:15]} d6 {[%emt 0:00:07]} 3. d4 {[%emt 0:00:06]} cxd4 {[%emt 0:00:06]} 4. Nxd4 {[%emt 0:00:05]} Nf6 {[%emt 0:00:08][%cal Bg8f6,Bf6d7,Bd7b6][%mdl 32]} 5. Nc3 {[%emt 0:00:06]} a6 {[%emt 0:00:06]} 6. Be3 {[%emt 0:00:16]} e6 {[%emt 0:00:10]} 7. a3 {[%emt 0:00:45]} b5 {[%emt 0:03:17]} 8. g4 {[%emt 0:00:11][%cal Bg2g4,Bg4g5][%mdl 32]} Bb7 {[%emt 0:03:11]} 9. Bg2 {[%emt 0:00:19] White is slightly better.} Nfd7 {[%emt 0:03:28]} 10. g5 {[%emt 0:01:05]} Nb6 {[%emt 0:04:10]} 11. f4 {[%emt 0:18:52]} N8d7 {[%emt 0:02:07][%cal Bb8d7,Bd7c5,Bc5a4][%mdl 32]} 12. h4 {[%emt 0:15:53][%cal Bh2h4,Bh4h5][%mdl 32]} Qc7 {[%emt 0:02:53]} 13. h5 {[%emt 0:15:46]} O-O-O {[%emt 0:00:41]} 14. Rh3 {[%emt 0:03:24][%cal Oc3b5]} Nc5 {[%emt 0:03:15]} 15. Qg4 {[%emt 0:04:51] Nd5 is the strong threat.} Kb8 {[%emt 0:02:30]} 16. O-O-O {[%emt 0:04:36]} Rc8 {[%emt 0:01:57]} 17. Kb1 {[%emt 0:03:59]} e5 {[%emt 0:04:20]} 18. Nde2 {[%emt 0:03:33]} Nca4 {[%emt 0:06:22]} 19. Bxb6 {[%emt 0:12:49]} (19. Bf2 $16) 19... Nxb6 $11 {[%emt 0:00:30]} 20. Rc1 {[%emt 0:01:17]} (20. Rhd3 $14) 20... Be7 {[%emt 0:02:41]} 21. Nd5 {[%emt 0:06:19]} Nxd5 {[%emt 0:03:15]} 22. exd5 {[%emt 0:00:03]} Qb6 {[%emt 0:01:13]} (22... f6 $11) 23. f5 $2 {[%emt 0:03:36] [#]} (23. fxe5 $16 {stays on course.} dxe5 24. Nc3) 23... Rc4 $17 {[%emt 0:01:08]} 24. Qg3 {[%emt 0:00:03]} Rhc8 {[%emt 0:00:46] Black is more active.} ({Black should try} 24... h6 $17 25. b3 Rcc8 (25... Bxg5 $2 26. bxc4 bxc4+ 27. Ka2 $18)) 25. h6 {[%emt 0:01:35]} g6 {[%emt 0:02:29]} 26. f6 {[%emt 0:00:04]} Bd8 {[%emt 0:00:06]} 27. b3 $1 {[%emt 0:00:56]} R4c5 {[%emt 0:01:12]} 28. Qd3 {[%emt 0:00:51]} a5 {[%emt 0:01:50]} 29. Be4 {[%emt 0:00:28]} b4 {[%emt 0:02:52]} 30. a4 $1 {[%emt 0:00:51]} Ba6 {[%emt 0:01:26]} 31. Qd2 {[%emt 0:00:11]} Qa7 {[%emt 0:00:32]} 32. Rf3 {[%emt 0:01:39]} Bb6 {[%emt 0:01:08]} 33. Rh1 {[%emt 0:00:28]} Qd7 {[%emt 0:00:32]} 34. Rh4 {[%emt 0:01:10] Inhibits Qg4.} Ka7 {[%emt 0:01:04]} 35. Rfh3 {[%emt 0:00:39]} R8c7 {[%emt 0:02:53]} 36. Rf3 {[%emt 0:00:17]} Qc8 {[%emt 0:01:10]} 37. Qd1 {[%emt 0:00:09]} Bb7 {[%emt 0:00:32]} 38. Rf1 {[%emt 0:00:56] [#] Loses the game.} (38. Qd2 $17) 38... Qa8 $1 $19 {[%emt 0:00:48][%cal Rb7d5]} 39. Qd3 {[%emt 0:00:44]} (39. Rf3 $142) 39... Bxd5 {[%emt 0:01:17]} 40. Rc1 {[%emt 0:00:07]} Bxe4 {[%emt 0:00:59]} 41. Qxe4 {[%emt 0:00:21]} Qe8 {[%emt 0:02:43]} 42. Rh2 {[%emt 0:00:53]} (42. Nd4 {was worth a try.}) 42... Qe6 {[%emt 0:00:48]} 43. Qf3 {[%emt 0:00:39]} d5 {[%emt 0:01:04]} 44. Rh4 {[%emt 0:00:27]} (44. Qd3 $142) 44... R5c6 {[%emt 0:00:39]} 45. Qd3 {[%emt 0:00:22]} e4 {[%emt 0:01:24]} 46. Qg3 {[%emt 0:00:40]} (46. Qd2) 46... Qc8 {[%emt 0:04:54][%cal Rc6c2]} 47. Qe5 {[%emt 0:00:30]} Rxc2 {[%emt 0:00:18]} 48. Rxc2 {[%emt 0:00:32]} Rxc2 {[%emt 0:00:02]} 49. Rh1 {[%emt 0:00:30]} Rxe2 {[%emt 0:00:45]} 50. Rc1 {[%emt 0:00:05]} Qb7 {[%emt 0:00:06] Weighted Error Value: White=0.55/Black=0.17 (very precise) .  Mistake:       	White=8     	Black=2      Inaccurate:     	White=8     	Black=6      OK:         	White=8     	Black=10     Best:        	White=1     	Black=1      Strong:       	White=2     	Black=1} 0-1